bitfinex-derivatives/quotes_SOLF0:USTF0_20250606
["timestamp","ask_amount","ask_price","bid_price","bid_amount"]
[1749237100474,0.40908,149.12,149.09,6.7023]
[1749237100674,4.44472262,149.11,149.1,6.7015]
[1749237101279,0.40908,149.12,149.1,6.7015]
[1749237101479,4.44452977,149.11,149.1,6.7015]
[1749237101977,4.44461605,149.11,149.1,6.7015]
[1749237102790,4.43826346,149.11,149.1,6.7015]
[1749237102983,4.43842159,149.11,149.1,6.7015]
[1749237103183,4.43860457,149.11,149.1,6.7015]
[1749237103382,4.43847422,149.11,149.1,6.7015]
[1749237104088,4.46547201,149.11,149.1,6.7015]
[1749237104488,4.46559858,149.11,149.1,6.7015]
[1749237105186,0.40908,149.12,149.11,6.7014]
[1749237107091,0.40908,149.12,149.11,16.7014]
[1749237107280,0.40908,149.12,149.11,10.0]
[1749237108789,0.40908,149.12,149.11,16.7014]
[1749237109593,0.40908,149.12,149.11,10.0]
[1749237109594,11.59375976,149.12,149.11,10.0]
[1749237110186,7.10998,149.12,149.11,10.0]
[1749237110789,4.8914508,149.12,149.11,10.0]
[1749237111194,4.8914508,149.12,149.11,16.7014]
[1749237111493,4.89465657,149.12,149.11,16.7014]
[1749237111678,4.89465243,149.12,149.11,16.7014]
[1749237111886,4.89456771,149.12,149.11,16.7014]
[1749237112192,40.4805,149.13,149.11,16.7014]
[1749237112485,4.48576161,149.12,149.11,10.0]
[1749237112691,40.4805,149.13,149.11,10.0]
[1749237112985,4.48591676,149.12,149.11,10.0]
[1749237113385,40.4805,149.13,149.11,10.0]
[1749237113588,4.48515751,149.12,149.11,10.0]
[1749237113786,40.4805,149.13,149.11,10.0]
[1749237114182,4.47441035,149.12,149.11,10.0]
[1749237114489,4.47438382,149.12,149.11,10.0]
[1749237114881,40.4805,149.13,149.11,10.0]
[1749237115091,4.47409347,149.12,149.11,16.7014]
[1749237115289,4.47411658,149.12,149.11,10.0]
[1749237115489,40.4805,149.13,149.11,10.0]
[1749237115691,4.47342392,149.12,149.11,10.0]
[1749237116088,4.47328954,149.12,149.11,10.0]
[1749237116391,6.7009,149.12,149.11,10.0]
[1749237116594,11.17424602,149.12,149.11,10.0]
[1749237116793,11.17188729,149.12,149.11,10.0]
[1749237117093,6.7009,149.12,149.11,10.0]
[1749237117291,11.17194206,149.12,149.11,10.0]
[1749237117679,11.17059275,149.12,149.11,10.0]
[1749237117887,11.17053414,149.12,149.11,9.95795133]
[1749237118294,11.16960417,149.12,149.11,9.95795133]
[1749237118492,6.7009,149.12,149.11,9.95795133]
[1749237118694,11.16966079,149.12,149.11,9.95795133]
[1749237118893,11.16951054,149.12,149.11,9.95795133]
[1749237119095,11.16952876,149.12,149.11,9.95795133]
[1749237119289,11.16947622,149.12,149.11,9.95795133]
[1749237119491,11.16947621,149.12,149.11,9.95795133]
[1749237119686,6.7009,149.12,149.11,9.95795133]
[1749237120087,11.1695757,149.12,149.11,9.95795133]
[1749237120292,6.7009,149.12,149.11,9.95795133]
[1749237120488,11.16962849,149.12,149.11,9.95795133]
[1749237120686,11.16959349,149.12,149.11,9.95795133]
[1749237121189,6.7009,149.12,149.11,9.95795133]
[1749237121385,11.17098288,149.12,149.11,9.95795133]
[1749237121589,11.19261575,149.12,149.11,9.95795133]
[1749237121893,6.7009,149.12,149.11,9.95795133]
[1749237122084,6.7014,149.11,149.03,4.6017]
[1749237122286,7.3269136,149.08,149.03,4.6017]
[1749237122690,4.49133167,149.08,149.03,11.9286136]
[1749237122885,33.78,149.09,149.08,6.7027]
[1749237124193,33.78,149.09,149.08,16.7027]
[1749237129494,0.04748165,149.1,149.09,6.7023]
[1749237135697,0.04748165,149.1,149.09,14.0292136]
[1749237137194,0.04748165,149.1,149.09,24.0292136]
[1749237137794,0.04748165,149.1,149.09,16.7023]
[1749237138903,4.55169006,149.1,149.09,16.7023]
[1749237139896,4.55591216,149.1,149.09,16.7023]
[1749237140901,0.04748165,149.1,149.09,16.7023]
[1749237141100,4.5562918,149.1,149.09,16.7023]
[1749237141299,4.55650438,149.1,149.09,16.7023]
[1749237142098,4.55964939,149.1,149.09,16.7023]
[1749237142998,4.55970376,149.1,149.09,16.7023]
[1749237143203,0.04748165,149.1,149.09,16.7023]
[1749237143805,4.55970191,149.1,149.09,16.7023]
[1749237144703,4.5617919,149.1,149.09,16.7023]
[1749237146305,4.56356928,149.1,149.09,16.7023]
[1749237146697,4.56372075,149.1,149.09,16.7023]
[1749237146901,4.56358053,149.1,149.09,16.7023]
[1749237148004,4.56364901,149.1,149.09,16.7023]
[1749237148505,0.04748165,149.1,149.09,16.7023]
[1749237148707,4.54920842,149.1,149.09,16.7023]
[1749237149200,0.04748165,149.1,149.09,10.0]
[1749237149412,4.54786624,149.1,149.09,10.0]
[1749237149708,4.54802637,149.1,149.09,10.0]
[1749237149899,11.24986966,149.1,149.09,10.0]
[1749237150101,6.74928165,149.1,149.09,10.0]
[1749237150401,11.25163216,149.1,149.09,10.0]
[1749237150601,6.74928165,149.1,149.09,10.0]
[1749237150906,11.25215869,149.1,149.09,10.0]
[1749237151109,4.55114527,149.1,149.09,10.0]
[1749237151702,4.55135158,149.1,149.09,10.0]
[1749237152007,4.55146374,149.1,149.09,10.0]
[1749237152811,4.55239634,149.1,149.09,10.0]
[1749237153109,4.55241397,149.1,149.09,10.0]
[1749237153410,4.55241397,149.1,149.09,16.7023]
[1749237153611,0.04748165,149.1,149.09,10.0]
[1749237153802,4.55259877,149.1,149.09,10.0]
[1749237154003,0.04748165,149.1,149.09,10.0]
[1749237154204,4.55259141,149.1,149.09,10.0]
[1749237154411,0.04748165,149.1,149.09,10.0]
[1749237154603,4.55260321,149.1,149.09,10.0]
[1749237154803,11.25440321,149.1,149.09,10.0]
[1749237155503,4.54094871,149.1,149.09,10.0]
[1749237155708,4.54095293,149.1,149.09,10.0]
[1749237156109,4.54095293,149.1,149.09,16.7023]
[1749237156999,33.84,149.12,149.11,6.7014]
[1749237160804,33.64,149.15,149.14,6.6998]
[1749237162514,33.64,149.15,149.13,6.75059203]
[1749237163314,33.64,149.15,149.14,6.7]
[1749237164911,400.14698087,149.2,149.13,7.37730563]
[1749237164912,40.3185,149.18,149.16,6.699]
[1749237165107,40.3185,149.18,149.16,6.74248908]
[1749237165312,33.62,149.18,149.16,6.74248908]
[1749237165608,33.62,149.18,149.16,0.04348908]
[1749237167014,6.6987,149.17,149.16,0.04348908]
[1749237167215,6.6987,149.17,149.16,10.04348908]
[1749237167612,33.62,149.18,149.16,10.04348908]
[1749237168219,33.62,149.18,149.16,16.74238908]
[1749237168510,33.62,149.18,149.16,10.04348908]
[1749237168715,40.3185,149.18,149.16,16.74258908]
[1749237168914,4.44607138,149.17,149.16,16.74258908]
[1749237169922,40.3182,149.18,149.16,16.74258908]
[1749237170419,4.46454918,149.17,149.16,16.74258908]
[1749237170617,40.3182,149.18,149.16,16.74258908]
[1749237170917,4.46454783,149.17,149.16,16.74258908]
[1749237171514,4.47057662,149.17,149.16,16.74258908]
[1749237171715,33.62,149.18,149.17,6.6987]
[1749237172319,38.09057662,149.18,149.17,6.6987]
[1749237172818,33.62,149.18,149.17,6.6987]
[1749237173017,0.38185,149.2,149.17,7.3269136]
[1749237173213,4.46737365,149.19,149.17,7.3269136]
[1749237173517,4.46733785,149.19,149.18,6.6982]
[1749237173719,4.46733745,149.19,149.17,7.3269136]
[1749237173920,0.38185,149.2,149.17,7.3269136]
[1749237174121,4.46733734,149.19,149.18,6.6982]
[1749237174821,4.84918734,149.2,149.19,6.6978]
[1749237175218,4.85327227,149.2,149.19,6.6978]
[1749237175719,0.38185,149.2,149.19,6.6978]
[1749237179123,0.38185,149.2,149.19,14.0247136]
[1749237182227,0.38185,149.2,149.19,24.0247136]
[1749237184429,7.07925,149.2,149.19,10.0]
[1749237186729,0.38185,149.2,149.19,16.6978]
[1749237186923,4.49526085,149.23,149.19,10.0]
[1749237187223,33.58,149.24,149.22,7.3269136]
[1749237187429,6.6948,149.26,149.24,6.6955]
[1749237187727,11.18996073,149.26,149.24,6.73973296]
[1749237188130,6.6951,149.25,149.24,0.04423296]
[1749237188523,4.49516047,149.26,149.24,0.04423296]
[1749237189627,419.62,149.27,149.24,0.04423296]
[1749237189827,6.6951,149.25,149.24,0.04423296]
[1749237191636,11.19556748,149.26,149.24,6.73973296]
[1749237191836,11.19556748,149.26,149.24,0.04423296]
[1749237193139,11.19729907,149.26,149.24,0.04423296]
[1749237193340,6.6947,149.26,149.24,0.04423296]
[1749237193540,11.19586166,149.26,149.24,0.04423296]
[1749237194843,11.20676973,149.26,149.24,0.04423296]
[1749237195335,11.20677097,149.26,149.24,0.04423296]
[1749237195731,11.20677097,149.26,149.24,6.73973296]
[1749237196646,6.6947,149.26,149.24,6.73973296]
[1749237196845,11.2073723,149.26,149.24,6.73973296]
[1749237197348,11.2073723,149.26,149.24,16.73973296]
[1749237197349,6.6947,149.26,149.24,16.73973296]
[1749237197547,426.3144,149.27,149.24,16.73973296]
[1749237197841,33.58,149.27,149.24,10.04423296]
[1749237198435,33.58,149.27,149.26,6.6946]
[1749237198640,33.58,149.3,149.26,7.3269136]
[1749237198838,33.56,149.33,149.28,7.3269136]
[1749237199648,0.33856,149.34,149.3,7.3269136]
[1749237199852,0.33856,149.34,149.31,0.04369912]
[1749237200145,0.33856,149.34,149.33,6.6915]
[1749237202856,0.33856,149.34,149.32,6.6918]
[1749237203046,0.33856,149.34,149.31,0.04369912]
[1749237203247,7.3269136,149.33,149.31,0.04369912]
[1749237203443,6.6919,149.32,149.31,0.04369912]
[1749237205550,40.2519,149.32,149.31,0.04369912]
[1749237207255,33.56,149.32,149.31,0.04369912]
[1749237207649,33.56,149.32,149.31,6.73609912]
[1749237208954,33.56,149.32,149.31,0.04369912]
[1749237210650,33.56,149.32,149.31,6.73609912]
[1749237210858,0.33856,149.34,149.31,0.04369912]
[1749237211256,0.33856,149.34,149.31,7.37061272]
[1749237211454,0.33856,149.34,149.32,6.6917]
[1749237212160,0.33856,149.34,149.32,16.6917]
[1749237212953,7.02966,149.34,149.32,16.6917]
[1749237213160,0.33856,149.34,149.32,10.0]
[1749237213665,4.87341986,149.34,149.32,10.0]
[1749237214164,0.33856,149.34,149.32,10.0]
[1749237214364,6.6915,149.33,149.32,10.0]
[1749237218365,11.25633937,149.33,149.32,10.0]
[1749237218570,6.6915,149.33,149.32,10.0]
[1749237219563,11.25642282,149.34,149.32,10.0]
[1749237219867,4.55018446,149.34,149.32,10.0]
[1749237220070,33.56,149.35,149.32,10.0]
[1749237220767,6.6914,149.34,149.32,10.0]
[1749237222168,6.6915,149.33,149.32,10.0]
[1749237223464,11.24450212,149.34,149.32,10.0]
[1749237223665,11.24450094,149.34,149.32,10.0]
[1749237224068,6.6912,149.34,149.32,10.0]
[1749237225671,6.6912,149.34,149.32,16.6918]
[1749237225880,33.56,149.35,149.32,10.0]
[1749237226475,33.56,149.35,149.33,6.6915]
[1749237227274,33.56,149.35,149.34,6.6911]
[1749237228368,33.56,149.35,149.33,6.6913]
[1749237228571,33.56,149.35,149.32,10.0]
[1749237228974,33.56,149.35,149.34,6.6911]
[1749237230381,40.2296,149.38,149.33,7.3269136]
[1749237230581,40.2296,149.38,149.34,0.04556465]
[1749237230775,33.54,149.38,149.35,6.6904]
[1749237230976,6.6901,149.37,149.35,6.6904]
[1749237231373,11.2828453,149.37,149.35,6.6904]
[1749237232480,11.28167413,149.37,149.35,6.6904]
[1749237232783,11.28168933,149.37,149.35,6.6904]
[1749237232983,4.59158021,149.37,149.35,6.6904]
[1749237233182,40.2295,149.38,149.35,6.6904]
[1749237233480,4.59158017,149.37,149.35,6.6904]
[1749237233685,4.59158017,149.37,149.36,6.6902]
[1749237233981,6.6897,149.37,149.34,0.04556465]
[1749237234285,4.60591439,149.36,149.34,0.04556465]
[1749237234486,33.54,149.38,149.35,6.6903]
[1749237234680,4.60590245,149.37,149.35,6.6903]
[1749237235185,4.60590851,149.37,149.35,6.6903]
[1749237235681,11.29570851,149.37,149.35,6.6903]
[1749237235880,11.29997313,149.37,149.35,6.6903]
[1749237236389,11.29952459,149.37,149.35,6.6903]
[1749237237194,4.60972459,149.37,149.35,6.6903]
[1749237237383,40.2295,149.38,149.36,6.6902]
[1749237237584,4.60946184,149.37,149.34,0.04556465]
[1749237237786,4.60946165,149.37,149.34,0.04556465]
[1749237238186,40.2295,149.38,149.35,6.6904]
[1749237238187,4.60946165,149.36,149.35,6.6904]
[1749237238387,4.60946165,149.37,149.35,6.6904]
[1749237238587,33.54,149.38,149.37,6.6897]
[1749237238786,38.15413219,149.38,149.37,6.6897]
[1749237239183,419.36,149.41,149.38,6.689]
[1749237239388,4.61179387,149.4,149.38,6.73989253]
[1749237239590,419.36,149.41,149.38,6.73989253]
[1749237239785,6.6886,149.4,149.38,6.73989253]
[1749237239995,4.61180803,149.39,149.38,6.73989253]
[1749237240592,4.61180803,149.4,149.38,16.73989253]
[1749237240792,4.61180803,149.39,149.38,16.73989253]
[1749237240996,419.36,149.41,149.38,16.73989253]
[1749237241401,6.6886,149.4,149.38,16.73989253]
[1749237241595,4.63265749,149.39,149.38,16.73989253]
[1749237242301,33.54,149.41,149.4,6.6884]
[1749237242501,36.11813455,149.41,149.4,6.6884]
[1749237242796,33.54,149.44,149.39,7.3269136]
[1749237242998,33.54,149.44,149.42,6.6873]
[1749237243193,33.54,149.44,149.42,0.05165662]
[1749237243600,33.54,149.44,149.43,6.687]
[1749237244002,40.8669136,149.47,149.42,0.05165662]
[1749237244204,7.3269136,149.43,149.38,10.0]
[1749237244402,7.3269136,149.4,149.38,10.0]
[1749237244597,6.6888,149.39,149.38,10.0]
[1749237245598,14.06614114,149.4,149.38,10.0]
[1749237247697,0.05062754,149.4,149.38,16.6892]
[1749237248509,6.73902754,149.4,149.38,10.0]
[1749237249704,0.05062754,149.4,149.38,16.6892]
[1749237250009,0.05062754,149.4,149.38,10.0]
[1749237251701,0.05062754,149.4,149.39,14.0157136]
[1749237253116,0.05062754,149.4,149.39,6.6888]
[1749237257216,0.05062754,149.4,149.39,16.6888]
[1749237266617,0.05062754,149.4,149.39,10.0]
[1749237267117,11.32179973,149.4,149.39,10.0]
[1749237267319,6.73902754,149.4,149.39,10.0]
[1749237267523,11.3280415,149.4,149.39,10.0]
[1749237267718,11.3280571,149.4,149.39,10.0]
[1749237268421,11.33236401,149.4,149.39,10.0]
[1749237268921,6.73902754,149.4,149.39,10.0]
[1749237269321,11.32909731,149.4,149.39,10.0]
[1749237269522,6.73902754,149.4,149.39,10.0]
[1749237269722,11.31829481,149.4,149.39,10.0]
[1749237269918,6.73902754,149.4,149.39,10.0]
[1749237270123,7.3269136,149.38,149.31,4.4906]
[1749237270322,7.3269136,149.36,149.32,6.6916]
[1749237270525,11.90645369,149.36,149.32,6.6916]
[1749237270726,6.691,149.35,149.32,6.6916]
[1749237271022,4.57954625,149.35,149.32,6.73388725]
[1749237271327,4.62861764,149.35,149.32,6.73388725]
[1749237271527,4.57656316,149.34,149.32,6.73388725]
[1749237271928,11.31643455,149.35,149.33,6.6915]
[1749237272120,11.31642756,149.35,149.33,6.6915]
[1749237272323,4.57902637,149.34,149.33,6.6915]
[1749237272519,4.62804625,149.35,149.34,6.6911]
[1749237272721,0.04907139,149.35,149.34,6.6911]
[1749237273727,4.62906891,149.35,149.34,6.6911]
[1749237274422,4.63201194,149.35,149.34,6.6911]
[1749237274624,0.04907139,149.35,149.34,6.6911]
[1749237275027,4.60496777,149.35,149.34,6.6911]
[1749237275328,0.04907139,149.35,149.34,6.6911]
[1749237275525,4.60496777,149.35,149.34,6.6911]
[1749237275718,4.60496777,149.35,149.33,6.6914]
[1749237275926,0.04907139,149.35,149.32,10.04228725]
[1749237276129,6.73997139,149.35,149.32,10.04228725]
[1749237276322,0.04907139,149.35,149.32,10.04228725]
[1749237276529,11.86976033,149.34,149.32,10.04228725]
[1749237276721,4.54284673,149.33,149.32,10.04228725]
[1749237277121,4.54293222,149.33,149.32,10.04228725]
[1749237277921,7.3269136,149.34,149.32,10.04228725]
[1749237278229,4.54970963,149.33,149.32,10.04228725]
[1749237278627,7.3269136,149.34,149.32,16.73398725]
[1749237278931,4.54970588,149.33,149.32,16.73398725]
[1749237279729,7.3269136,149.34,149.32,16.73398725]
[1749237279930,4.54417423,149.33,149.32,16.73398725]
[1749237280529,7.3269136,149.34,149.32,16.73398725]
[1749237280729,4.54417423,149.33,149.32,16.73398725]
[1749237280925,4.54417423,149.33,149.32,10.04228725]
[1749237281630,4.52913234,149.33,149.32,10.04228725]
[1749237281830,4.52913234,149.34,149.32,10.04228725]
[1749237282033,4.52913234,149.33,149.32,10.04228725]
[1749237282233,4.5291275,149.34,149.32,16.73378725]
[1749237282533,0.04907139,149.35,149.32,16.73378725]
[1749237282534,4.5291275,149.33,149.32,16.73378725]
[1749237282728,4.5291275,149.34,149.32,16.73378725]
[1749237283334,0.04907139,149.35,149.32,16.73378725]
[1749237283529,4.52573114,149.34,149.32,16.73378725]
[1749237283929,0.04907139,149.35,149.32,16.73378725]
[1749237284129,11.26567696,149.35,149.32,16.73378725]
[1749237284828,11.2592618,149.35,149.32,16.73378725]
[1749237285032,6.73997139,149.35,149.32,16.73378725]
[1749237285526,11.25724859,149.35,149.32,16.73378725]
[1749237285826,6.73997139,149.35,149.32,16.73378725]
[1749237286035,11.25724859,149.35,149.32,16.73378725]
[1749237286233,6.73997139,149.35,149.33,6.6915]
[1749237286433,11.25724859,149.35,149.33,6.6915]
[1749237286838,6.6911,149.34,149.32,10.04228725]
[1749237288737,6.6911,149.34,149.32,16.73418725]
[1749237289038,11.25482077,149.35,149.32,10.04228725]
[1749237289237,6.73987139,149.35,149.32,10.04228725]
[1749237289440,0.04907139,149.35,149.33,6.6913]
[1749237290433,6.73997139,149.35,149.32,16.73408725]
[1749237291439,6.73997139,149.35,149.33,6.6915]
[1749237291934,6.73997139,149.35,149.32,16.73398725]
[1749237292335,6.6913,149.34,149.32,10.04228725]
[1749237293043,6.73997139,149.35,149.32,16.73418725]
[1749237293841,6.73997139,149.35,149.33,6.6915]
[1749237294041,6.73997139,149.35,149.32,10.04228725]
[1749237294342,6.73997139,149.35,149.32,16.73398725]
[1749237295945,6.73997139,149.35,149.32,10.04228725]
[1749237296244,11.23871838,149.35,149.32,10.04228725]
[1749237296445,6.73997139,149.35,149.32,16.73398725]
[1749237296746,6.73997139,149.35,149.32,10.04228725]
[1749237297644,6.73997139,149.35,149.32,16.73398725]
[1749237297845,11.23918323,149.35,149.32,16.73398725]
[1749237298045,6.73997139,149.35,149.32,16.73398725]
[1749237299743,11.24138479,149.35,149.32,16.73398725]
[1749237299944,6.73997139,149.35,149.32,16.73398725]
[1749237300145,6.6911,149.34,149.32,16.73398725]
[1749237301049,6.73987139,149.35,149.32,16.73398725]
[1749237301248,0.04907139,149.35,149.32,16.73398725]
[1749237301451,4.56128531,149.35,149.32,16.73398725]
[1749237301849,4.56128531,149.35,149.32,6.73398725]
[1749237302150,4.56128531,149.35,149.32,16.73398725]
[1749237302350,6.6911,149.34,149.32,16.73398725]
[1749237303754,11.25623526,149.35,149.32,16.73398725]
[1749237304053,6.73997139,149.35,149.32,16.73398725]
[1749237304243,6.6911,149.34,149.32,16.73398725]
[1749237304447,6.6911,149.34,149.32,10.04228725]
[1749237304646,4.51156477,149.34,149.32,10.04228725]
[1749237305152,4.51156611,149.34,149.32,16.73398725]
[1749237305343,0.04907139,149.35,149.32,10.04228725]
[1749237305546,0.04907139,149.35,149.32,17.36920085]
[1749237305849,33.5,149.4,149.34,7.3269136]
[1749237306051,4.51473422,149.39,149.37,6.6897]
[1749237306253,4.51472669,149.39,149.36,7.3269136]
[1749237306644,4.5572004,149.39,149.38,6.6893]
[1749237306948,4.55716854,149.39,149.38,6.6893]
[1749237307149,4.55718276,149.39,149.38,6.6893]
[1749237307346,4.55718276,149.39,149.36,7.37053346]
[1749237307347,0.04247371,149.39,149.37,6.6895]
[1749237307551,4.51470904,149.38,149.37,6.6895]
[1749237307854,4.50633338,149.38,149.36,0.04361986]
[1749237308048,7.36938731,149.39,149.36,0.04361986]
[1749237308358,6.6897,149.37,149.36,0.04361986]
[1749237308557,11.19606371,149.37,149.36,0.04361986]
[1749237308854,11.19606372,149.37,149.36,0.04361986]
[1749237309249,11.19606776,149.37,149.36,0.04361986]
[1749237309757,6.6897,149.37,149.36,0.04361986]
[1749237309956,11.22287288,149.37,149.36,0.04361986]
[1749237310256,11.22286541,149.37,149.36,0.04361986]
[1749237310458,6.6897,149.37,149.36,0.04361986]
[1749237310759,11.23450889,149.37,149.36,0.04361986]
[1749237311852,11.23779369,149.37,149.36,0.04361986]
[1749237312256,11.23537134,149.37,149.36,0.04361986]
[1749237312756,11.23542737,149.37,149.36,0.04361986]
[1749237313154,11.23530134,149.37,149.36,0.04361986]
[1749237313556,6.6914,149.34,149.32,10.0]
[1749237313761,4.54560134,149.33,149.32,10.0]
[1749237313951,4.54569161,149.33,149.32,10.0]
[1749237314153,40.8069136,149.35,149.32,10.0]
[1749237314658,4.54026169,149.34,149.32,17.37830914]
[1749237314853,33.52364759,149.35,149.32,17.37830914]
[1749237315047,4.536935,149.34,149.32,10.05139554]
[1749237315251,33.52364759,149.35,149.34,6.6911]
[1749237315451,38.06265887,149.35,149.34,6.6911]
[1749237315653,38.06265161,149.35,149.32,10.05139554]
[1749237315854,4.53900402,149.34,149.33,6.6912]
[1749237316857,33.52364759,149.35,149.34,6.6911]
[1749237317061,38.06216412,149.35,149.34,6.6911]
[1749237317760,38.06216543,149.35,149.34,6.6911]
[1749237318763,38.06160741,149.35,149.34,6.6911]
[1749237320366,38.04181674,149.35,149.34,6.6911]
[1749237320567,33.52364759,149.35,149.34,6.6911]
[1749237321158,38.04181674,149.35,149.34,6.6911]
[1749237321866,38.04051067,149.35,149.34,6.6911]
[1749237322363,33.52364759,149.35,149.34,6.6911]
[1749237322566,38.04051648,149.35,149.34,6.6911]
[1749237322761,38.04051055,149.35,149.34,6.6911]
[1749237323856,38.04025188,149.35,149.34,6.6911]
[1749237325566,4.56025188,149.35,149.34,6.6911]
[1749237325868,0.04364759,149.35,149.34,6.6911]
[1749237326070,33.48,149.38,149.37,6.6897]
[1749237326271,37.99652626,149.38,149.37,6.6897]
[1749237326767,4.51652615,149.38,149.37,6.6897]
[1749237326965,4.51652615,149.38,149.37,14.0166136]
[1749237327273,0.0470267,149.39,149.38,6.6893]
[1749237327475,4.56340805,149.39,149.38,6.6893]
[1749237327772,0.0470267,149.39,149.38,6.6893]
[1749237327974,4.56333164,149.39,149.38,6.6893]
[1749237329075,4.5785835,149.39,149.38,6.6893]
[1749237329971,0.0470267,149.39,149.38,6.6893]
[1749237332173,0.0470267,149.39,149.38,16.6893]
[1749237335171,33.48,149.41,149.4,6.6884]
[1749237335371,4.54820521,149.41,149.39,7.3269136]
[1749237335677,4.54820521,149.43,149.42,6.6875]
[1749237335878,33.48,149.44,149.39,7.3269136]
[1749237336179,33.48,149.44,149.43,6.687]
[1749237336371,4.54509797,149.44,149.43,6.687]
[1749237336572,33.48,149.47,149.41,7.3269136]
[1749237336573,4.54509797,149.46,149.41,9.5343136]
[1749237336773,40.1655,149.47,149.44,6.6864]
[1749237336976,4.54519295,149.46,149.44,6.73608787]
[1749237337178,4.54477674,149.45,149.44,6.73608787]
[1749237337380,4.54477674,149.46,149.44,6.73608787]
[1749237337578,4.54477674,149.45,149.44,6.73608787]
[1749237337883,4.54477674,149.46,149.44,6.73608787]
[1749237338185,4.54478128,149.45,149.44,0.04968787]
[1749237338683,11.23058128,149.46,149.44,0.04968787]
[1749237339285,11.23019436,149.46,149.44,0.04968787]
[1749237339485,4.54439436,149.46,149.44,6.73598787]
[1749237339673,4.54439339,149.46,149.44,6.73598787]
[1749237339978,47.4924136,149.47,149.44,6.73598787]
[1749237340182,4.54439015,149.46,149.44,6.73598787]
[1749237340386,47.4924136,149.47,149.44,6.73598787]
[1749237340586,6.6858,149.46,149.44,6.73598787]
[1749237340787,11.23369038,149.46,149.44,6.73598787]
[1749237341080,6.6858,149.46,149.44,6.73598787]
[1749237341584,40.1655,149.47,149.45,6.6861]
[1749237341784,40.1655,149.47,149.44,0.04968787]
[1749237342383,40.1655,149.47,149.44,6.73598787]
[1749237342585,33.48,149.47,149.44,6.73598787]
[1749237343087,40.1656,149.47,149.44,6.73598787]
[1749237343781,6.6857,149.46,149.44,6.73598787]
[1749237344987,40.1654,149.47,149.44,6.73598787]
[1749237345688,40.1654,149.47,149.44,0.04968787]
[1749237345883,33.48,149.47,149.44,0.04968787]
[1749237346090,7.3269136,149.46,149.44,0.04968787]
[1749237346281,11.92593705,149.46,149.4,6.6882]
[1749237346486,6.6873,149.43,149.4,6.6882]
[1749237346686,33.46,149.42,149.4,6.6882]
[1749237347091,33.46,149.42,149.4,16.6882]
[1749237347293,33.5082445,149.42,149.4,16.7388987]
[1749237347495,33.5082445,149.42,149.4,10.0506987]
[1749237348093,33.5082445,149.42,149.4,16.7389987]
[1749237348597,33.5082445,149.42,149.41,6.6879]
[1749237352395,0.0482445,149.42,149.41,14.0148136]
[1749237352899,33.46,149.46,149.45,6.6857]
[1749237361197,33.46,149.49,149.44,0.04423502]
[1749237362305,33.46,149.49,149.44,10.04423502]
[1749237363203,33.46,149.49,149.47,6.6848]
[1749237363407,33.46,149.49,149.45,7.3269136]
[1749237363698,33.46,149.49,149.48,6.6848]
[1749237364198,40.1431,149.52,149.49,6.684]
[1749237364504,4.53757905,149.51,149.49,6.684]
[1749237364806,4.53757905,149.51,149.48,6.6846]
[1749237365200,11.86449265,149.51,149.47,0.04340444]
[1749237365396,11.8656533,149.51,149.47,0.04340444]
[1749237365600,11.86568977,149.51,149.47,0.04340444]
[1749237365904,6.6842,149.5,149.47,6.72860444]
[1749237366299,11.22298848,149.5,149.47,6.72860444]
[1749237366498,4.53878848,149.5,149.48,6.6847]
[1749237366896,18.54940208,149.51,149.48,6.6847]
[1749237367205,4.54090016,149.5,149.48,6.6847]
[1749237367501,18.5515202,149.51,149.48,6.6847]
[1749237367807,18.5515202,149.51,149.47,0.04340444]
[1749237367808,4.54092713,149.5,149.47,0.04340444]
[1749237368206,4.54092281,149.5,149.47,0.04340444]
[1749237368504,4.54092281,149.49,149.47,0.04340444]
[1749237368699,4.54092281,149.51,149.47,7.37031804]
[1749237368900,33.46,149.52,149.49,6.6841]
[1749237369100,4.56161952,149.51,149.49,6.6841]
[1749237369402,4.5616193,149.51,149.49,6.6841]
[1749237369599,4.56160501,149.51,149.49,6.6841]
[1749237370001,4.56160501,149.51,149.48,6.6846]
[1749237370202,4.56160501,149.5,149.48,6.6846]
[1749237370398,4.56160501,149.49,149.47,6.72840444]